fUST/lending_fUST_20260201
["ID","MTS","AMOUNT","RATE_DAILY","PERIOD"]
[404159408,1769887272001,534.64796897,0.00013821,2]
[404159409,1769887273036,308.75508522,0.00013699,2]
[404159410,1769887273447,500.0,0.00013699,2]
[404159411,1769887273494,512.89834066,0.00014247,2]
[404159412,1769887273518,487.10165934,0.00014247,2]
[404159413,1769887273657,302.08825533,0.00013273,2]
[404159414,1769887273945,488.50652582,0.00013273,2]
[404159415,1769887274474,525.37478737,0.00013699,2]
[404159417,1769887276407,500.36944659,0.00013699,2]
[404159418,1769887277558,500.0,0.00013273,2]
[404159419,1769887277606,500.0,0.00013821,2]
[404159420,1769887279369,500.0,0.00013699,2]
[404159421,1769887279406,1000.0,0.00014247,2]
[404159422,1769887280398,500.0,0.00013273,2]
[404159423,1769887280436,1000.0,0.00013821,2]
[404159424,1769887280467,1500.0,0.00014368,2]
[404159425,1769887280507,2000.0,0.00014916,2]
[404159426,1769887280801,196.56932555,0.00013273,2]
[404159427,1769887280955,303.43067445,0.00013273,2]
[404159428,1769887280985,1000.0,0.00013821,2]
[404159429,1769887281321,1000.0,0.00013821,2]
[404159430,1769887281371,1004.79261489,0.00014368,2]
[404159431,1769887281445,500.0,0.00013273,2]
[404159432,1769887284192,495.80265968,0.00013699,2]
[404159433,1769887288318,2575.17519942,0.00015342,2]
[404159434,1769887304041,3120.80885156,0.00015342,2]
[404159435,1769887304065,1879.19114844,0.00015342,2]
[404159436,1769887318033,151.0,0.00036602,120]
[404159437,1769887325263,500.0,0.00013699,2]
[404159438,1769887325667,500.0,0.00013699,2]
[404159439,1769887325709,1000.0,0.00014247,2]
[404159440,1769887325758,1500.0,0.00014795,2]
[404159441,1769887326291,4620.81885156,0.00015342,2]
[404159442,1769887326324,379.18114844,0.00015342,2]
[404159445,1769887383299,218.55727424,0.00013273,2]
[404159446,1769887383328,158.88062448,0.00013699,2]
[404159447,1769887383357,537.1943014,0.00013273,2]
[404159448,1769887383384,500.0,0.00013699,2]
[404159449,1769887383500,500.0,0.00013273,2]
[404159450,1769887383551,1000.0,0.00013821,2]
[404159451,1769887383604,1504.6841927,0.00014368,2]
[404159452,1769887385789,507.6640978,0.00013699,2]
[404159453,1769887386334,526.71254202,0.00013699,2]
[404159454,1769887386398,613.41777659,0.00013699,2]
[404159455,1769887386496,500.0,0.00013699,2]
[404159456,1769887386705,500.0,0.00013699,2]
[404159457,1769887386758,501.06198753,0.00014247,2]
[404159458,1769887386901,500.0,0.00013699,2]
[404159459,1769887386947,500.0,0.00013699,2]
[404159460,1769887386974,1052.6560548,0.00014247,2]
[404159461,1769887386997,64.75294208,0.00014247,2]
[404159462,1769887387022,1000.0,0.00014247,2]
[404159463,1769887387466,302.47063203,0.00013699,2]
[404159464,1769887388477,300.0,0.00013673,2]
[404159465,1769887388531,900.0,0.00014768,2]
[404159466,1769887388693,600.0,0.00015316,2]
[404159467,1769887388723,600.0,0.00014221,2]
[404159469,1769887394057,1000.0,0.00013821,2]
[404159470,1769887394126,500.0,0.00013273,2]
[404159471,1769887396879,500.0,0.00013699,2]
[404159473,1769887396934,1000.0,0.00014247,2]
[404159474,1769887397684,1000.0,0.00014247,2]
[404159475,1769887397718,500.0,0.00013699,2]
[404159476,1769887398155,500.0,0.00013273,2]
[404159477,1769887398188,275.22020058,0.00013821,2]
[404159478,1769887402909,500.0,0.00013273,2]
[404159479,1769887402958,457.56622531,0.00013821,2]
[404159480,1769887402981,42.43377469,0.00013821,2]
[404159481,1769887406540,207.96872306,0.00015242,2]
[404159484,1769887503950,500.0,0.00013273,2]
[404159485,1769887504011,299.40900723,0.00013821,2]
[404159486,1769887504297,500.0,0.00013699,2]
[404159487,1769887504342,688.92992331,0.00014247,2]
[404159488,1769887507716,500.33960277,0.00013699,2]
[404159489,1769887513856,7260.92896894,0.00015242,2]
[404159490,1769887513880,10000.01,0.00015242,2]
[404159491,1769887513902,10000.01,0.00015242,2]
[404159492,1769887513924,10000.01,0.00015242,2]
[404159493,1769887513960,10000.01,0.00015242,2]
[404159494,1769887513985,10000.01,0.00015242,2]
[404159495,1769887514009,10000.01,0.00015242,2]
[404159496,1769887514033,10000.01,0.00015242,2]
[404159497,1769887514057,10000.01,0.00015242,2]
[404159498,1769887514080,10000.01,0.00015242,2]
[404159504,1769887586153,-500.0,0.00013699,2]
[404159505,1769887586180,-500.0,0.00013699,2]
[404159506,1769887586214,-500.0,0.00013699,2]
[404159507,1769887586243,-500.0,0.00013699,2]
[404159508,1769887586272,-500.0,0.00013699,2]
[404159509,1769887586301,-239.15209599,0.00013973,2]
[404159510,1769887586329,-1000.0,0.00014247,2]
[404159511,1769887586359,-523.45765406,0.00014247,2]
[404159512,1769887586742,-1500.0,0.00014795,2]
[404159513,1769887586771,-2000.01,0.00014939,2]
[404159514,1769887586980,-2999.99,0.00014939,2]
[404159515,1769887587008,-201.70588657,0.00015068,2]
[404159516,1769887587151,-5000.0,0.0001509,2]
[404159517,1769887587444,-300.0,0.00015241,2]
[404159518,1769887593772,-5000.0,0.00014647,2]
[404159519,1769887593990,-379.96767158,0.00015241,2]
[404159520,1769887594021,-289.3474183,0.00015241,2]
[404159521,1769887601112,-458.96492981,0.00015241,2]
[404159522,1769887603011,-41.03507019,0.00015241,2]
[404159523,1769887603042,-500.0,0.00015241,2]
[404159524,1769887603072,-500.0,0.00015241,2]
[404159525,1769887603101,-189.09058513,0.00015241,2]
[404159526,1769887603130,-500.0,0.00015241,2]
[404159527,1769887603157,-500.0,0.00015241,2]
[404159528,1769887603187,-500.0,0.00015241,2]
[404159529,1769887603216,-500.0,0.00015241,2]
[404159530,1769887603247,-500.0,0.00015241,2]
[404159531,1769887603279,-500.0,0.00015241,2]
[404159532,1769887603309,-500.0,0.00015241,2]
[404159533,1769887603341,-237.68126267,0.00015241,2]
[404159534,1769887603492,-64.39616402,0.00015241,2]
[404159535,1769887603523,-500.0,0.00015241,2]
[404159536,1769887603553,-500.0,0.00015241,2]
[404159537,1769887603591,-500.0,0.00015241,2]
[404159538,1769887603621,-500.0,0.00015241,2]
[404159539,1769887603651,-500.0,0.00015241,2]
[404159540,1769887603682,-500.0,0.00015241,2]
[404159541,1769887603712,-500.0,0.00015241,2]
[404159542,1769887603835,-500.0,0.00015241,2]
[404159543,1769887603868,-500.0,0.00015241,2]
[404159544,1769887603899,-371.21767196,0.00015241,2]
[404159545,1769887604005,-128.78232804,0.00015241,2]
[404159546,1769887604035,-500.0,0.00015241,2]
[404159547,1769887604065,-618.06098436,0.00015241,2]
[404159548,1769887604096,-500.0,0.00015241,2]
[404159549,1769887604125,-500.0,0.00015241,2]
[404159550,1769887604154,-572.00524926,0.00015241,2]
[404159551,1769887604184,-500.0,0.00015241,2]
[404159552,1769887604214,-500.0,0.00015241,2]
[404159553,1769887604247,-500.0,0.00015241,2]
[404159554,1769887604281,-500.0,0.00015241,2]
[404159555,1769887604423,-500.0,0.00015241,2]
[404159556,1769887604453,-392.70220108,0.00015241,2]
[404159557,1769887604481,-500.0,0.00015241,2]
[404159558,1769887604510,-500.0,0.00015241,2]
[404159559,1769887604538,-500.0,0.00015241,2]
[404159560,1769887604568,-500.0,0.00015241,2]
[404159561,1769887604600,-500.0,0.00015241,2]
[404159562,1769887604629,-500.0,0.00015241,2]
[404159563,1769887604659,-500.0,0.00015241,2]
[404159564,1769887604689,-500.0,0.00015241,2]
[404159565,1769887604760,-500.0,0.00015241,2]
[404159566,1769887604790,-500.0,0.00015241,2]
[404159567,1769887604821,-500.0,0.00015241,2]
[404159568,1769887604851,-500.0,0.00015241,2]
[404159569,1769887604882,-500.0,0.00015241,2]
[404159570,1769887604912,-500.0,0.00015241,2]
[404159571,1769887604943,-500.0,0.00015241,2]
[404159572,1769887604974,-500.0,0.00015241,2]
[404159573,1769887605004,-500.0,0.00015241,2]
[404159574,1769887605034,-500.0,0.00015241,2]
[404159575,1769887605165,-500.0,0.00015241,2]
[404159576,1769887605196,-500.0,0.00015241,2]
[404159577,1769887605227,-500.0,0.00015241,2]
[404159578,1769887605254,-500.0,0.00015241,2]
[404159579,1769887605288,-500.0,0.00015241,2]
[404159580,1769887605319,-500.0,0.00015241,2]
[404159581,1769887605356,-500.0,0.00015241,2]
[404159582,1769887605389,-500.0,0.00015241,2]
[404159583,1769887605419,-500.0,0.00015241,2]
[404159584,1769887605448,-500.0,0.00015241,2]
[404159585,1769887605674,-500.0,0.00015241,2]
[404159586,1769887605705,-500.0,0.00015241,2]
[404159587,1769887605735,-270.4126353,0.00015242,2]
[404159588,1769887610463,-589.79655443,0.00015089,2]
[404159589,1769887610492,-500.0,0.00015241,2]
[404159590,1769887620500,-5000.0,0.00014938,2]
[404159591,1769887621165,-5000.0,0.00014789,2]
[404159592,1769887625584,-500.0,0.00013273,2]
[404159593,1769887625616,-300.0,0.00015241,2]
[404159594,1769887625645,-300.0,0.00015241,2]
[404159595,1769887626227,-482.07871433,0.00015242,2]
[404159596,1769887628831,1112.46686072,0.000131,2]
[404159598,1769887632796,-500.0,0.00013273,2]
[404159599,1769887632830,-300.0,0.00013673,2]
[404159600,1769887632863,-505.40496948,0.00013699,2]
[404159601,1769887632894,-500.0,0.00013699,2]
[404159602,1769887632926,-500.0,0.00013699,2]
[404159603,1769887632960,-502.71899874,0.00013699,2]
[404159604,1769887632992,-1000.0,0.00013821,2]
[404159605,1769887633021,-600.0,0.00014221,2]
[404159606,1769887633064,-183.76206356,0.00014247,2]
[404159607,1769887633226,-239.94552144,0.00013273,2]
[404159608,1769887633261,-816.23793644,0.00014247,2]
[404159609,1769887633298,-1000.0,0.00014247,2]
[404159610,1769887633330,-500.0,0.00014368,2]
[404159611,1769887633495,-300.0,0.00014768,2]
[404159612,1769887633524,-1500.0,0.00014795,2]
[404159613,1769887633662,-1367.01973863,0.00014795,2]
[404159614,1769887633889,-500.0,0.00013273,2]
[404159615,1769887633920,-532.3582484,0.00013699,2]
[404159616,1769887634004,-1071.52277228,0.00015242,2]
[404159617,1769887634018,-7265.97052274,0.00015242,2]
[404159618,1769887634032,-10000.01,0.00015242,2]
[404159619,1769887634055,-1000.0,0.00013821,2]
[404159620,1769887634064,-1500.0,0.00014368,2]
[404159621,1769887634073,-7500.01,0.00015242,2]
[404159622,1769887634087,-500.0,0.00015242,2]
[404159623,1769887634107,-532.3582484,0.00014916,2]
[404159624,1769887634126,-500.0,0.00013273,2]
[404159625,1769887634135,-1020.99960081,0.00014916,2]
[404159626,1769887634144,-6414.29390239,0.00015242,2]
[404159627,1769887636574,-500.15361623,0.00013273,2]
[404159628,1769887636611,-8999.70276754,0.00015242,2]
[404159629,1769887644556,5000.0,0.000131,2]
[404159630,1769887644688,1664068.99001149,0.00036695,20]
[404159631,1769887653156,2073.76963264,0.000131,2]
[404159632,1769887659327,-500.0,0.00013273,2]
[404159633,1769887659355,-500.0,0.00013273,2]
[404159634,1769887659385,-560.05447856,0.00013273,2]
[404159635,1769887659412,-500.0,0.00013273,2]
[404159636,1769887659441,-500.0,0.00013273,2]
[404159637,1769887661987,225.44891154,0.000275,120]
[404159638,1769887662469,300.0,0.00013537,2]
[404159639,1769887662918,300.0,0.00013537,2]
[404159640,1769887663376,300.0,0.00013537,2]
[404159641,1769887663832,300.0,0.00013537,2]
[404159642,1769887664313,300.0,0.00013537,2]
[404159643,1769887664778,300.0,0.00013537,2]
[404159644,1769887665240,300.0,0.00013537,2]
[404159645,1769887665742,300.0,0.00013537,2]
[404159646,1769887666251,300.0,0.00013537,2]
[404159647,1769887666742,300.0,0.00013537,2]
[404159648,1769887667263,300.0,0.00013537,2]
[404159649,1769887667687,300.0,0.00013537,2]
[404159650,1769887668095,1279.90104288,0.00013699,2]
[404159651,1769887668119,3720.09895712,0.00013699,2]
[404159652,1769887668731,300.0,0.00013537,2]
[404159653,1769887669236,300.0,0.00013537,2]
[404159654,1769887669707,300.0,0.00013537,2]
[404159655,1769887674182,5379.91104288,0.00012,5]
[404159656,1769887674206,6938.0249679,0.00012,5]
[404159657,1769887675795,3061.9850321,0.00013699,2]
[404159658,1769887675817,1938.0149679,0.00013699,2]
[404159659,1769887690361,879.22294314,0.00012057,2]
[404159660,1769887691228,5000.0,0.000131,2]
[404159661,1769887695262,188.94892956,0.0001,2]
[404159662,1769887700448,-500.0,0.00013273,2]
[404159663,1769887700468,-159.78106884,0.00013273,2]
[404159664,1769887700490,-355.3793753,0.00013273,2]
[404159665,1769887703793,-144.6206247,0.00013273,2]
[404159666,1769887703817,-24.60855295,0.00013273,2]
[404159667,1769887706043,-624.10871006,0.00013273,2]
[404159668,1769887706067,-285.89128994,0.00013273,2]
[404159670,1769887710795,351.9448901,0.00025,120]
[404159671,1769887713238,3931.8381273,0.000131,2]
[404159672,1769887713262,1068.1618727,0.000131,2]
[404159673,1769887715358,-214.10871006,0.00013273,2]
[404159674,1769887715380,-160.87904154,0.00013273,2]
[404159675,1769887718455,458.45288147,0.000295,120]
[404159676,1769887721188,4389.63720307,0.0001,2]
[404159678,1769887721568,2665.57681706,0.0001,2]
[404159679,1769887723416,154.58246849,0.00036695,60]
[404159680,1769887723886,718.08303049,0.0002849,120]
[404159681,1769887724926,3530.84256268,0.00036695,30]
[404159682,1769887724959,322.28539994,0.00036695,30]
[404159683,1769887730393,-339.12095846,0.00013273,2]
[404159684,1769887730415,-61.88327346,0.000135,2]
[404159685,1769887733577,-174.89590963,0.000135,2]
[404159686,1769887735118,-177.52956342,0.000135,2]
[404159687,1769887736669,-259.37527249,0.00013365,2]
[404159688,1769887741057,-200.0,0.00013365,2]
[404159689,1769887742508,-216.64971271,0.00013365,2]
[404159690,1769887745247,-179.99131428,0.00013273,2]
[404159691,1769887747351,-320.00868572,0.00013273,2]
[404159692,1769887747372,-68.01074694,0.00013273,2]
[404159693,1769887751352,-183.35028729,0.00013273,2]
[404159694,1769887753528,-175.21079795,0.00013273,2]
[404159695,1769887756881,-73.42816782,0.00013273,2]
[404159696,1769887756905,-226.57183218,0.00013273,2]
[404159697,1769887759729,-245.66018267,0.00013273,2]
[404159698,1769887762170,-27.76798515,0.00013273,2]
[404159699,1769887762192,-130.04376259,0.00013273,2]
[404159700,1769887763791,-196.52806959,0.00013273,2]
[404159701,1769887765378,-152.80228227,0.00013273,2]
[404159702,1769887767461,-20.62588555,0.00013273,2]
[404159703,1769887767484,-161.65898456,0.00013273,2]
[404159704,1769887767507,-100.76657326,0.00013273,2]
[404159705,1769887768919,-360.33220671,0.00013273,2]
[404159706,1769887770890,-38.90122003,0.00013273,2]
[404159707,1769887770915,-266.62065992,0.00013273,2]
[404159708,1769887772791,-233.37934008,0.00013273,2]
[404159709,1769887772813,-158.38206772,0.00013273,2]
[404159710,1769887775957,-180.11046574,0.00013273,2]
[404159711,1769887777403,-161.50746654,0.00013273,2]
[404159712,1769887777426,-117.71512989,0.00013273,2]
[404159713,1769887779445,-300.0,0.00013273,2]
[404159714,1769887781315,-54.18730503,0.00013273,2]
[404159715,1769887781338,-163.79351735,0.00013273,2]
[404159716,1769887785533,-183.2402496,0.00013273,2]
[404159717,1769887788064,-152.96623305,0.00013273,2]
[404159718,1769887788085,-41.95128617,0.00013273,2]
[404159719,1769887796041,-374.9877516,0.00013273,2]
[404159720,1769887798909,-83.06096223,0.00013273,2]
[404159721,1769887798930,-159.39965777,0.00013273,2]
[404159722,1769887805325,-300.0,0.00013272,2]
[404159723,1769887805349,-7.11536472,0.00013272,2]
[404159724,1769887808224,-204.69093765,0.00013272,2]
[404159725,1769887809683,-88.19369763,0.00013272,2]
[404159726,1769887809706,-300.0,0.00013272,2]
[404159727,1769887809730,-111.80630237,0.00013272,2]
[404159728,1769887819502,-188.19369763,0.00013272,2]
[404159729,1769887819525,-178.66155229,0.00013272,2]
[404159730,1769887825023,-121.33844771,0.00013272,2]
[404159731,1769887825047,-105.97695268,0.00013272,2]
[404159732,1769887827197,-434.31616405,0.00013272,2]
[404159733,1769887827410,-659.70688327,0.00013272,2]
[404159734,1769887827436,-608.0,0.00013272,2]
[404159735,1769887827461,-340.60034223,0.00013273,2]
[404159736,1769887827485,-500.0,0.00013273,2]
[404159737,1769887827509,-205.09849573,0.00013273,2]
[404159738,1769887827536,-500.0,0.00013273,2]
[404159739,1769887827559,-500.0,0.00013273,2]
[404159740,1769887827583,-500.0,0.00013273,2]
[404159741,1769887827606,-326.7839082,0.00013273,2]
[404159742,1769887827630,-500.0,0.00013273,2]
[404159743,1769887827653,-500.0,0.00013273,2]
[404159744,1769887827677,-500.0,0.00013273,2]
[404159745,1769887827700,-262.11707809,0.00013273,2]
[404159746,1769887827724,-500.0,0.00013273,2]
[404159747,1769887827748,-500.0,0.00013273,2]
[404159748,1769887827772,-500.0,0.00013273,2]
[404159749,1769887827795,-500.0,0.00013273,2]
[404159750,1769887827818,-500.0,0.00013273,2]
[404159751,1769887827843,-600.24437915,0.00013273,2]
[404159752,1769887827866,-500.0,0.00013273,2]
[404159753,1769887827891,-402.96126214,0.00013273,2]
[404159754,1769887827916,-500.0,0.00013273,2]
[404159755,1769887827939,-500.0,0.00013273,2]
[404159756,1769887827964,-3290.65789226,0.00013365,2]
[404159757,1769887827989,-506.20430051,0.000135,2]
[404159758,1769887828017,-300.0,0.00013537,2]
[404159759,1769887828044,-300.0,0.00013537,2]
[404159760,1769887828070,-300.0,0.00013537,2]
[404159761,1769887828098,-300.0,0.00013537,2]
[404159762,1769887828124,-300.0,0.00013537,2]
[404159763,1769887828150,-300.0,0.00013537,2]
[404159764,1769887828176,-300.0,0.00013537,2]
[404159765,1769887828201,-300.0,0.00013537,2]
[404159766,1769887828226,-300.0,0.00013537,2]
[404159767,1769887828252,-300.0,0.00013537,2]
[404159768,1769887828277,-300.0,0.00013537,2]
[404159769,1769887828303,-300.0,0.00013537,2]
[404159770,1769887828328,-300.0,0.00013537,2]
[404159771,1769887828355,-300.0,0.00013537,2]
[404159772,1769887828382,-300.0,0.00013673,2]
[404159773,1769887828410,-500.0,0.00013698,2]
[404159774,1769887828436,-500.0,0.00013698,2]
[404159775,1769887828461,-500.0,0.00013698,2]
[404159776,1769887828487,-500.0,0.00013698,2]
[404159777,1769887828515,-210.30024457,0.00013698,2]
[404159778,1769887828543,-500.0,0.00013698,2]
[404159779,1769887828568,-290.89566493,0.00013698,2]
[404159780,1769887828594,-500.0,0.00013698,2]
[404159781,1769887828619,-500.0,0.00013698,2]
[404159782,1769887828644,-207.20052492,0.00013698,2]
[404159783,1769887828668,-50000.0,0.00013699,2]
[404159784,1769887828692,-500.0,0.00013699,2]
[404159785,1769887828716,-500.0,0.00013699,2]
[404159786,1769887828740,-500.0,0.00013699,2]
[404159787,1769887828765,-500.0,0.00013699,2]
[404159788,1769887828791,-233.4614362,0.00013699,2]
[404159789,1769887828815,-500.0,0.00013699,2]
[404159790,1769887828839,-500.0,0.00013699,2]
[404159791,1769887828863,-639.03893936,0.00013699,2]
[404159792,1769887828889,-500.0,0.00013699,2]
[404159793,1769887828912,-336.4468968,0.00013699,2]
[404159794,1769887828935,-379.37881138,0.00013699,2]
[404159795,1769887828963,-500.0,0.00013699,2]
[404159796,1769887828987,-500.0,0.00013699,2]
[404159797,1769887829010,-500.0,0.00013699,2]
[404159798,1769887829035,-164.27055171,0.00013699,2]
[404159799,1769887829060,-508.49522103,0.00013699,2]
[404159800,1769887829084,-500.0,0.00013699,2]
[404159801,1769887829107,-500.0,0.00013699,2]
[404159802,1769887829129,-500.0,0.00013699,2]
[404159803,1769887829151,-500.0,0.00013821,2]
[404159804,1769887829173,-469.10482923,0.00013821,2]
[404159805,1769887829195,-278.71960077,0.00013821,2]
[404159806,1769887829222,-1009.21152379,0.00013821,2]
[404159807,1769887829246,-636.70723829,0.00013821,2]
[404159808,1769887829273,-500.0,0.00013821,2]
[404159809,1769887829298,-1000.0,0.00013821,2]
[404159810,1769887829322,-781.81534647,0.00013821,2]
[404159811,1769887829349,-1000.0,0.00013821,2]
[404159812,1769887829373,-500.0,0.00013821,2]
[404159813,1769887829399,-1000.0,0.00013821,2]
[404159814,1769887829423,-940.86953465,0.00013821,2]
[404159815,1769887829534,-1000.0,0.00013821,2]
[404159816,1769887829559,-423.26460722,0.00013821,2]
[404159817,1769887829583,-400.0902881,0.00013821,2]
[404159818,1769887829607,-1000.0,0.00013821,2]
[404159819,1769887829631,-897.62397769,0.00013821,2]
[404159820,1769887829657,-500.0,0.00013821,2]
[404159821,1769887829682,-1000.0,0.00013821,2]
[404159822,1769887829708,-500.0,0.00014095,2]
[404159823,1769887829734,-300.0,0.00014221,2]
[404159824,1769887829759,-1000.0,0.00014247,2]
[404159825,1769887829784,-1000.0,0.00014247,2]
[404159826,1769887829810,-1000.0,0.00014247,2]
[404159827,1769887829833,-886.16038037,0.00014247,2]
[404159828,1769887829857,-1000.0,0.00014247,2]
[404159829,1769887829882,-237.37671403,0.00014247,2]
[404159830,1769887829905,-498.54806363,0.00014247,2]
[404159831,1769887829929,-1000.0,0.00014247,2]
[404159832,1769887829953,-1000.0,0.00014247,2]
[404159833,1769887829976,-1000.0,0.00014247,2]
[404159834,1769887830007,-500.0,0.00014368,2]
[404159835,1769887830041,-1500.0,0.00014368,2]
[404159836,1769887830066,-1500.0,0.00014368,2]
[404159837,1769887830091,-1500.0,0.00014368,2]
[404159838,1769887830115,-500.0,0.00014368,2]
[404159839,1769887830140,-1500.0,0.00014368,2]
[404159840,1769887830165,-1500.0,0.00014368,2]
[404159841,1769887830190,-420.0,0.00014551,2]
[404159842,1769887830216,-420.0,0.00014551,2]
[404159843,1769887830243,-420.0,0.00014551,2]
[404159844,1769887830269,-420.0,0.00014551,2]
[404159845,1769887830295,-1680.0,0.00014599,2]
[404159846,1769887830319,-500.0,0.00014642,2]
[404159847,1769887830346,-1065.0903288,0.00014795,2]
[404159848,1769887830370,-500.0,0.00014795,2]
[404159849,1769887830396,-928.91678136,0.00014795,2]
[404159850,1769887830420,-1008.31156326,0.00014795,2]
[404159851,1769887830445,-1500.0,0.00014795,2]
[404159852,1769887830469,-1500.0,0.00014795,2]
[404159853,1769887830493,-786.32435452,0.00014795,2]
[404159854,1769887830519,-2000.0,0.00014916,2]
[404159855,1769887830546,-2000.0,0.00014916,2]
[404159856,1769887830574,-2000.0,0.00014916,2]
[404159857,1769887830599,-500.0,0.00014916,2]
[404159858,1769887830625,-168.23504379,0.00014916,2]
[404159859,1769887830650,-2000.0,0.00014916,2]
[404159860,1769887830674,-82094.59230441,0.00015,2]
[404159861,1769887830698,-17915.35807205,0.00015,2]
[404159862,1769887830724,-5000.0,0.0001509,2]
[404159863,1769887830749,-294.24619409,0.0001519,2]
[404159864,1769887830774,-110266.50946527,0.00015242,2]
[404159865,1769887830798,-2978.31,0.00015342,2]
[404159866,1769887830822,-10000.0,0.00015342,2]
[404159867,1769887830847,-2000.0,0.00015342,2]
[404159868,1769887830871,-2000.0,0.00015342,2]
[404159869,1769887830895,-2000.0,0.00015342,2]
[404159870,1769887830919,-10000.0,0.00015442,2]
[404159871,1769887830945,-2000.0,0.00015464,2]
[404159872,1769887830973,-227.39525532,0.00015464,2]
[404159873,1769887830999,-2500.0,0.00015464,2]
[404159874,1769887831023,-4621.66,0.00015542,2]
[404159875,1769887831049,-2568.31,0.00015559,2]
[404159876,1769887831074,-300.0,0.00015862,2]
[404159877,1769887831101,-501.79642948,0.0001589,2]
[404159878,1769887831125,-1892.71542894,0.0001589,2]
[404159879,1769887831150,-2000.0,0.0001589,2]
[404159880,1769887831195,-587.0,0.00015953,2]
[404159881,1769887831226,-587.0,0.00015953,2]
[404159882,1769887831253,-587.0,0.00015953,2]
[404159883,1769887831279,-587.0,0.00015953,2]
[404159884,1769887831304,-282.19947327,0.00015973,2]
[404159885,1769887831328,-545.608784,0.00015987,2]
[404159886,1769887831361,-1500.0,0.00016012,2]
[404159887,1769887831390,-2351.0,0.00016059,2]
[404159888,1769887831415,-500.0,0.00016362,2]
[404159889,1769887831438,-229.63378893,0.00016438,2]
[404159890,1769887831461,-150.0,0.00016899,2]
[404159891,1769887831484,-150.0,0.00016899,2]
[404159892,1769887831507,-262.38384027,0.00016899,2]
[404159893,1769887831533,-150.0,0.00016899,2]
[404159894,1769887831557,-500.0,0.00016899,2]
[404159895,1769887831582,-500.0,0.00016899,2]
[404159896,1769887831607,-500.0,0.00016901,2]
[404159897,1769887831631,-208.5968267,0.00016901,2]
[404159899,1769887831656,-25039.17152224,0.00017,2]
[404159904,1769887831687,-283.0,0.00017018,2]
[404159910,1769887831711,-150.0,0.00017036,2]
[404159917,1769887831736,-239.60909828,0.00017036,2]
[404159921,1769887831761,-573.42161175,0.00017036,2]
[404159928,1769887831786,-550.0,0.00017036,2]
[404159969,1769887831915,-500.0,0.00017038,2]
[404159973,1769887831944,-296.16286123,0.00017173,2]
[404159977,1769887831970,-353.508,0.00017174,2]
[404159981,1769887831998,-500.0,0.00017175,2]
[404159984,1769887832023,-1000.0,0.00017175,2]
[404159988,1769887832050,-581.56433519,0.00017175,2]
[404159991,1769887832075,-5474.7,0.00017177,2]
[404159995,1769887832100,-14458.0,0.00017245,2]
[404159999,1769887832125,-2750.04455994,0.00017245,2]
[404160002,1769887832150,-500.0,0.00017312,2]
[404160006,1769887832174,-1297.9135993,0.00017319,2]
[404160009,1769887832199,-1316.65913693,0.00017319,2]
[404160012,1769887832222,-665.41,0.00017409,3]
[404160015,1769887832246,-487.0,0.00017419,2]
[404160019,1769887832271,-487.0,0.00017419,2]
[404160020,1769887832297,-487.0,0.00017419,2]
[404160021,1769887832320,-896.56,0.00017419,2]
[404160022,1769887832347,-500.0,0.00017449,2]
[404160023,1769887832373,-178206.5819231,0.0001747,2]